Cogmind - Beta 12 @@@ ROGUE MODE // 2023.11.09 @ 21:12:24 Player: epb Result: Destroyed by H-61 Shepherd with Heavy Assault Cannon Performance ------------- Evolutions (2) 1000 Regions Visited (5) 1000 Robots Destroyed (63) 315 Value Destroyed (1916) 1916 Prototype IDs (3) 60 Alien Tech Used (0) 0 Bonus (155) 155 TOTAL SCORE: 4446 Bonus ------- High Alert Combat Kills 148 Follower Combat Kills 100 Friendly Fire -93 Cogmind --------- Core Integrity 0/550 Matter 224/300 Energy 77/100 System Corruption 0% Temperature Cool (27) Movement Core (50) Location -8/Materials Parts ------- > --- POWER (2) -------- (None) > --- PROPULSION (2) --- (None) > --- UTILITY (3) ------ (None) > --- WEAPON (4) ------- Field Laser > --- INVENTORY (5) ---- (None) Peak State ------------ > --- POWER ------------ Ion Engine Improved Ion Engine > --- PROPULSION ------- Combat Airjet VTOL Module > --- UTILITY ---------- Small Storage Unit Light Armor Plating System Shield > --- WEAPON ----------- Improved Lightning Gun Pulse Rifle Advanced Beam Cannon Cooled Plasma Cannon > --- INVENTORY -------- Grenade Launcher Mini Grenade Launcher Mini Grenade Launcher [Rating: 33] Favorites ----------- Power Ion Engine Engine Ion Engine Power Core Nuclear Core Propulsion Aluminum Leg Treads Light Treads Leg Aluminum Leg Wheel Wheel Hover Unit Combat Airjet Flight Unit VTOL Module Utility Small Storage Unit Device Hardlight Generator Storage Small Storage Unit Processor Launcher Guidance Computer Hackware System Shield Protection Light Armor Plating Weapon Beam Cannon Energy Gun Improved Lightning Gun Energy Cannon Beam Cannon Ballistic Gun Assault Rifle Ballistic Cannon Assault Cannon Launcher Mini Grenade Launcher Slashing Weapon Mining Claw Special Melee Weapon Datajack Build | -11 -10 -10 -9 -9 -8 ------- Run | Jun Mat Min Mat Sto Mat Slots Evolved 4 | . . . 2 . 2 Power 1 | . . . 1 . . Propulsion . | . . . . . . Utility 1 | . . . 1 . . Weapon 2 | . . . . . 2 Parts Attached 50 | 9 3 8 . 11 19 Power 8 | 1 . 2 . 2 3 Engine 6 | 1 . 2 . 2 1 Core 2 | . . . . . 2 Reactor . | . . . . . . Propulsion 13 | 5 . 3 . 2 3 Treads 2 | 2 . . . . . Leg 6 | 3 . . . . 3 Wheel 2 | . . 2 . . . Hover 2 | . . 1 . 1 . Flight 1 | . . . . 1 . Utility 7 | 1 1 1 . 1 3 Device 2 | . . . . . 2 Storage 2 | 1 1 . . . . Processor 1 | . . 1 . . . Hackware 1 | . . . . . 1 Protection 1 | . . . . 1 . Artifact . | . . . . . . Weapon 22 | 2 2 2 . 6 10 Energy Gun 5 | 1 . . . 1 3 Energy Cannon 5 | . 2 . . 2 1 Ballistic Gun 2 | 1 . . . 1 . Ballistic Cannon 1 | . . . . . 1 Launcher 7 | . . 1 . 1 5 Special Weapon . | . . . . . . Impact Weapon . | . . . . . . Slashing Weapon 1 | . . . . 1 . Piercing Weapon . | . . . . . . Special Melee Weapon 1 | . . 1 . . . Unidentified Prototypes 3 | . . . . 3 . Parts Lost 28 | . . 6 . 1 21 Power 7 | . . 1 . 1 5 Propulsion 6 | . . 2 . . 4 Utility 5 | . . 1 . . 4 Weapon 10 | . . 2 . . 8 Highest Loss Streak 10 | . . 5 . 1 10 To Critical Strikes . | . . . . . . Average Slot Usage (%) 81 | . 98 82 66 84 73 Engine 9 | . 14 10 11 13 5 Core 3 | . . . . . 6 Leg 10 | . 28 15 . . 9 Hover 5 | . . 1 11 13 3 Flight 2 | . . . . 5 2 Device 2 | . . . . . 4 Storage 11 | . 26 23 11 11 2 Processor 3 | . . 1 11 11 1 Hackware 2 | . . . . . 5 Protection 2 | . . . . 7 2 Energy Gun 5 | . 1 . . 6 8 Energy Cannon 11 | . 24 21 . 5 7 Ballistic Cannon 1 | . . . . . 2 Launcher 5 | . . 1 11 3 10 Naked Turns . | . . . . . . Heaviest Build 40 | 14 20 20 12 33 40 Greatest Support 40 | 40 20 26 12 19 30 Greatest Overweight (x) 7 | . . 6 . 2 7 Average Overweight (x) . | . . . . . . Largest Inventory Capacity 8 | 8 8 8 8 8 8 Average Capacity 6 | 7 8 8 8 8 5 Most Carried 8 | 3 4 2 . 8 6 Average Carried 2 | 1 2 1 . 4 2 Final Capacity 8 | 8 8 8 8 8 5 Final Carried 4 | 3 2 . . 4 . Class Distribution -------------------- 55% | Mutant 27% | Scavenger-Mutant 11% | Scavenger-Tank Dominant Class ---------------- Mutant | -10/Materials Mutant | -10/Mines Mutant | -9/Materials Scavenger-Mutant | -9/Storage Scavenger-Mutant | -8/Materials Resources | -11 -10 -10 -9 -9 -8 ----------- Run | Jun Mat Min Mat Sto Mat Matter Collected 1081 | 144 168 60 . 155 554 Remotely . | . . . . . . Salvage Created 1929 | 80 311 25 . 807 706 Parts 136 | 3 21 . . 65 47 Haulers Intercepted . | . . . . . . Recyclers Shooed 1 | . . . . . 1 Parts Field Recycled . | . . . . . . Retrieved Matter . | . . . . . . Parts Self-Destructed . | . . . . . . Prevented . | . . . . . . Kills | -11 -10 -10 -9 -9 -8 ------- Run | Jun Mat Min Mat Sto Mat Combat Hostiles Destroyed 45 | . 6 4 . 18 17 Guns 8 | . . . . 6 2 Cannons 18 | . 5 4 . 2 7 AOE 17 | . . . . 10 7 Classes Destroyed 13 | 1 5 1 . 4 2 Worker 2 | . 1 . . 1 . Builder 5 | . 1 . . 1 3 Recycler 4 | 1 . . . 1 2 Mechanic 1 | . . . . 1 . Operator 4 | . 1 . . 1 2 Watcher 6 | . 1 . . 2 3 Swarmer 5 | . . . . . 5 Grunt 23 | . 6 . . 10 7 Brawler 1 | . . . . 1 . Protector 1 | . . . . 1 . Sentry 8 | . . . . 6 2 Hunter 3 | . . . . . 3 Assembled 4 | . . 4 . . . Best Kill Streak 14 | 1 5 2 . 14 7 Combat Bots Only 11 | . 3 2 . 11 4 Max Kills in Single Turn 4 | 1 1 1 . 4 3 Gunslinging . | . . . . . . Exploded 4 | . . . . 4 1 Melee . | . . . . . . Uniques/NPCs Destroyed . | . . . . . . Combat | -11 -10 -10 -9 -9 -8 -------- Run | Jun Mat Min Mat Sto Mat Damage Taken 2875 | . 150 539 . 420 1766 Core 873 | . 16 143 . 123 591 Absorbed by Shields 120 | . . . . . 120 Core Remaining (%) 68 | 100 . 36 . 69 . Volleys Fired 108 | 2 18 18 . 28 42 Largest 4 | 2 2 2 . 2 4 Hottest 226 | 70 120 120 . 128 226 Shots Fired 214 | 4 36 29 . 35 110 Gun 51 | 4 . . . 15 32 Cannon 126 | . 36 29 . 13 48 Launcher 37 | . . . . 7 30 Special . | . . . . . . Kinetic 15 | 2 . . . . 13 Thermal 142 | 2 36 29 . 13 62 Explosive 37 | . . . . 7 30 Electromagnetic 20 | . . . . 15 5 Robot Hit Streak 11 | 2 5 6 . 11 5 Robot Miss Streak 6 | 1 3 6 . 6 4 Penetration Max . | . . . . . . Secondary Targets . | . . . . . . Shots Hit Robots 104 | 2 21 11 . 24 46 Core Hits 93 | 2 11 7 . 41 32 Critical Kills 2 | . 1 . . . 1 Critical Parts Destroyed . | . . . . . . Critical Strikes 3 | . 1 . . . 2 Burn 1 | . . . . . 1 Meltdown 2 | . 1 . . . 1 Melee Attacks . | . . . . . . Impact . | . . . . . . Slashing . | . . . . . . Piercing . | . . . . . . Sneak Attacks . | . . . . . . Combat Hostiles . | . . . . . . Follow-up Attacks . | . . . . . . Damage Inflicted 4558 | 37 406 318 . 1534 2263 Guns 600 | 25 . . . 269 306 Cannons 1381 | . 403 318 . 186 474 Explosions 2562 | . . . . 1079 1483 Melee . | . . . . . . Ramming 15 | 12 3 . . . . Kinetic 138 | 13 . . . . 125 Thermal 1886 | 12 403 318 . 186 967 Explosive 2120 | . . . . 1079 1041 Electromagnetic 399 | . . . . 269 130 Impact . | . . . . . . Slashing . | . . . . . . Piercing . | . . . . . . Highest Corruption . | . . . . . . Average Corruption . | . . . . . . Corruption Purged . | . . . . . . Corruption Blocked . | . . . . . . Overload Shots . | . . . . . . Overflow Damage 195 | . . 10 . 44 141 Projectiles 11 | . . 10 . . 1 Explosions 184 | . . . . 44 140 Melee . | . . . . . . Knockbacks . | . . . . . . Impact . | . . . . . . Kinetic . | . . . . . . Secondary . | . . . . . . Self-Inflicted Damage 366 | . . . . 55 311 Shots 11 | . . . . 2 9 Rammed . | . . . . . . Targets Rammed 5 | 4 1 . . . . Kicked 5 | 4 1 . . . . Crushed . | . . . . . . Highest Temperature 779 | 18 437 630 . 317 779 Average Temperature 191 | 10 155 277 . 118 225 Received Heat Transfer 495 | . 84 . . 180 231 Effects 39 | . 4 9 . 2 24 Shutdowns 10 | . 1 2 . . 7 Energy Bleed 4 | . . 1 . . 3 Interference 7 | . . 1 . 2 4 Matter Decay 3 | . . . . . 3 Short Circuit 2 | . . 2 . . . Damage (minor) 4 | . . 1 . . 3 Damage (major) 9 | . 3 2 . . 4 Siege Activations . | . . . . . . Robots Corrupted . | . . . . . . Combat Hostiles . | . . . . . . Parts Fried . | . . . . . . Impact Corruptions . | . . . . . . Robots Melted 2 | . 1 . . . 1 Combat Hostiles 2 | . 1 . . . 1 Parts Melted 3 | . 1 . . 1 1 Heat Transferred 3244 | 37 851 666 . 324 1366 Parts Sabotaged . | . . . . . . Parts Stolen . | . . . . . . Parts Stripped . | . . . . . . Power Chain Reactions 1 | . . . . . 1 Missiles Intercepted . | . . . . . . Alert | -11 -10 -10 -9 -9 -8 ------- Run | Jun Mat Min Mat Sto Mat Peak Influence 671 | 5 178 69 18 606 671 Initial 196 | . 3 69 3 7 196 Average 283 | . 92 49 3 364 401 Maximum Alert Level 2 | . . . . 2 2 Low Security (%) 39 | 100 100 100 100 20 4 Level 1 24 | . . . . 20 44 Level 2 36 | . . . . 59 51 Level 3 . | . . . . . . Level 4 . | . . . . . . Level 5 . | . . . . . . High Security . | . . . . . . Max Security . | . . . . . . Squads Dispatched 13 | . 1 . 1 6 5 Investigation 3 | . 1 . . . 2 Extermination . | . . . . . . Reinforcement 6 | . . . 1 2 3 Assault 2 | . . . . 2 . Garrison 2 | . . . . 2 . Intercept . | . . . . . . Searches Triggered . | . . . . . . Construction Impeded . | . . . . . . Haulers Reinforced . | . . . . . . Active Scanning Responses . | . . . . . . Cargo Convoy Interrupts . | . . . . . . Stealth | -11 -10 -10 -9 -9 -8 --------- Run | Jun Mat Min Mat Sto Mat Distress Signals 5 | . 1 . . 1 3 Communications Jammed . | . . . . . . Distress Signals . | . . . . . . Times Spotted 71 | . 6 6 3 25 31 Peak Tracking Total 14 | . 3 4 3 14 5 Tactical Retreats 3 | . . 1 . . 2 Traps | -11 -10 -10 -9 -9 -8 ------- Run | Jun Mat Min Mat Sto Mat Traps Triggered 2 | . 1 . . . 1 Indirectly . | . . . . . . Trap Hack Attempts . | . . . . . . Triggered . | . . . . . . Disarmed . | . . . . . . Reprogrammed . | . . . . . . Reused . | . . . . . . Traps Extracted . | . . . . . . Installed . | . . . . . . Triggered . | . . . . . . Machines | -11 -10 -10 -9 -9 -8 ---------- Run | Jun Mat Min Mat Sto Mat Machines Disabled 7 | . . . . 1 6 Max in Single Turn 1 | . . . . 1 1 Machines Repaired . | . . . . . . Machines Sabotaged . | . . . . . . Overloaded Fab Kills . | . . . . . . Hacking | -11 -10 -10 -9 -9 -8 --------- Run | Jun Mat Min Mat Sto Mat Machines Accessed 9 | . 2 . . 4 3 Terminals 6 | . 2 . . 3 1 Fabricators . | . . . . . . Repair Stations . | . . . . . . Recycling Units 1 | . . . . 1 . Scanalyzers 1 | . . . . . 1 Garrison Access 1 | . . . . . 1 Total Hacks 23 | . 8 . . 7 8 Successful 14 | . 4 . . 5 5 Failed 9 | . 4 . . 2 3 Catastrophic . | . . . . . . Database Lockouts . | . . . . . . Manual . | . . . . . . Terminals 17 | . 8 . . 5 4 Fabricators . | . . . . . . Repair Stations . | . . . . . . Recycling Units 2 | . . . . 2 . Scanalyzers 2 | . . . . . 2 Garrison Access 2 | . . . . . 2 Terminal Hacks 8 | . 4 . . 3 1 Record 1 | . 1 . . . . Open Door 3 | . . . . 3 . Branch Access Points 1 | . 1 . . . . Alert Level 1 | . 1 . . . . Security Status 1 | . . . . . 1 Zone Layout 1 | . 1 . . . . Fabricator Hacks . | . . . . . . Repair Station Hacks . | . . . . . . Recycling Unit Hacks 2 | . . . . 2 . Report Inventory 1 | . . . . 1 . Retrieve Components 1 | . . . . 1 . Scanalyzer 2 | . . . . . 2 Insert Component 1 | . . . . . 1 Analyze 1 | . . . . . 1 Garrison Access Hacks 2 | . . . . . 2 Unlock Access 1 | . . . . . 1 Coupler Status 1 | . . . . . 1 Unauthorized Hacks . | . . . . . . Terminals . | . . . . . . Fabricators . | . . . . . . Repair Stations . | . . . . . . Recycling Units . | . . . . . . Scanalyzers . | . . . . . . Garrison Access . | . . . . . . Data Cores Recovered 3 | . 1 . . 1 1 Used . | . . . . . . Hacking Detections 5 | . 2 . . 1 2 Full Trace Events 3 | . 2 . . . 1 Feedback Events . | . . . . . . Feedback Blocked . | . . . . . . Robot Schematics Acquired . | . . . . . . Robots Built . | . . . . . . Authchips . | . . . . . . Time . | . . . . . . Total Robot Build Rating . | . . . . . . Part Schematics Acquired 1 | . . . . . 1 Parts Built . | . . . . . . Authchips . | . . . . . . Time . | . . . . . . Total Part Build Rating . | . . . . . . Parts Repaired . | . . . . . . Time . | . . . . . . Parts Recycled . | . . . . . . Recycled Matter . | . . . . . . Retrieved Matter . | . . . . . . Retrieved Components 4 | . . . . 4 . Parts Scanalyzed 1 | . . . . . 1 Part Schematics Acquired 1 | . . . . . 1 Parts Damaged . | . . . . . . Bothacking | -11 -10 -10 -9 -9 -8 ------------ Run | Jun Mat Min Mat Sto Mat Used RIF Installer . | . . . . . . Robots Hacked . | . . . . . . Non-combat . | . . . . . . Combat . | . . . . . . Robot Hacks Applied . | . . . . . . Relay Couplers Released . | . . . . . . Fabnet Peak Effective % . | . . . . . . Robots Rewired . | . . . . . . Allies Hacked . | . . . . . . Hacks Repelled . | . . . . . . Allies | -11 -10 -10 -9 -9 -8 -------- Run | Jun Mat Min Mat Sto Mat Total Allies 2 | . . . . 2 . Largest Group 2 | . . . . 2 . Highest-Rated Group 62 | . . . . 62 . Highest-Rated Ally 31 | . . . . 31 . Total Orders . | . . . . . . Ally Attacks 25 | . . . . 25 . Total Damage 319 | . . . . 319 . Kills 4 | . . . . 4 . Allies Corrupted . | . . . . . . Allies Melted . | . . . . . . Intel | -11 -10 -10 -9 -9 -8 ------- Run | Jun Mat Min Mat Sto Mat Robot Analysis Total . | . . . . . . Derelict Logs Recovered 1 | . . 1 . . . Drone Launches . | . . . . . . Drone Recoveries . | . . . . . . Exploration | -11 -10 -10 -9 -9 -8 ------------- Run | Jun Mat Min Mat Sto Mat Turns Passed 2217 | 87 343 271 16 520 980 Spaces Moved 1321 | 44 234 177 20 325 521 Core 38 | 4 . 10 . . 24 Treads 25 | 25 . . . . . Legs 670 | 15 234 89 . . 332 Wheels 61 | . . 61 . . . Hover 527 | . . 17 20 325 165 Flight . | . . . . . . Fastest Speed 50 | 50 120 80 80 66 50 Average Speed 137 | 136 120 119 80 131 156 Slowest Speed 400 | 160 120 350 80 220 400 Overloaded Moves . | . . . . . . Propulsion Burnouts . | . . . . . . Robots Hopped . | . . . . . . Cave-ins Triggered . | . . . . . . Exploration Rate (%) 27 | 4 35 42 3 40 38 Regions Visited 5 Branch Regions 2 Pre-discovered Areas . | . . . . . . Known Exits Taken 1 | . 1 . . . . Unknown Exits Taken 4 | 1 . 1 1 1 . Scrap Searched . | . . . . . . Spaces Dug 8 | . . . . 8 . Terrain Destroyed 330 | . . . . 55 275 Melee . | . . . . . . Projectile 19 | . . . . 1 18 AOE 311 | . . . . 54 257 Terrain Rammed . | . . . . . . Walls Destroyed . | . . . . . . Machines Disabled . | . . . . . . Actions | -11 -10 -10 -9 -9 -8 --------- Run | Jun Mat Min Mat Sto Mat Total 1525 | 61 260 205 19 379 601 Wait . | . . . . . . Move 1316 | 43 233 176 19 324 521 Hop . | . . . . . . Pick Up 27 | 3 1 . . 9 14 Fast Attach 19 | 6 3 6 . 4 . Attach 17 | . . 1 . . 16 Detach . | . . . . . . Swap 14 | 3 . 1 . 7 3 Drop 17 | . 4 3 . 5 5 Fire 108 | 2 18 18 . 28 42 Melee . | . . . . . . Ram . | . . . . . . Kick 5 | 4 1 . . . . Crush . | . . . . . . Escape Stasis . | . . . . . . Rewire 2 | . . . . 2 . Trap . | . . . . . . Miscellaneous . | . . . . . . Route ------- -11/Junkyard -10/Materials -10/Mines -9/Materials -9/Storage -8/Materials (discovered 1 exit: Gar) History --------- Turn | Location | Event 11 | -11/Junkyard | Discovered new exit (range 16) 88 | -11/Junkyard | Entered Materials 300 | -10/Materials | Build established: Mutant 361 | -10/Materials | Discovered new exit (range 10) 413 | -10/Materials | Identified exit to Mines 431 | -10/Materials | Entered Mines 455 | -10/Mines | Met a Derelict bent on vengeance 527 | -10/Mines | Assembled infested the area 656 | -10/Mines | Core integrity fell below 50% 671 | -10/Mines | YI-UF0 nonchalantly dropped a Grenade Launcher on the ground 676 | -10/Mines | Lost 5 parts (1p1n1u2w) 688 | -10/Mines | Discovered new exit (range 12) 694 | -10/Mines | Learned Materials terminal intel 702 | -10/Mines | Entered Materials 702 | -9/Materials | Evolved 2 slots: Power x1, Utility x1 702 | -9/Materials | Discovered new exit (range 7) 703 | -9/Materials | Loaded intel: 12 terminal locations 718 | -9/Materials | Entered Storage 741 | -9/Storage | Met a pair of Derelict thieves 858 | -9/Storage | Destroyed 11 combat bots 1076 | -9/Storage | Garrison activated, responded to threat 1172 | -9/Storage | Discovered new exit (range 16) 1238 | -9/Storage | Entered Materials 1238 | -8/Materials | Evolved 2 slots: Weapon x2 1268 | -8/Materials | Build established: Scavenger-Mutant 1526 | -8/Materials | Lost 5 parts (1p2u2w) 2014 | -8/Materials | Identified exit to Garrison 2107 | -8/Materials | Core integrity fell below 50% 2124 | -8/Materials | Lost 10 parts (2p2n2u4w) 2214 | -8/Materials | Core integrity fell below 20% 2218 | -8/Materials | Destroyed by H-61 Shepherd with Heavy Assault Cannon Last Messages --------------- reinforcements to area. Lgt. Deuterium Engine destroyed. Destroyed Lgt. Deuterium Engine. Aluminum Leg destroyed. Destroyed Aluminum Leg. Destroyed Lgt. Ion Engine. Mni. Grenade Launcher destroyed. Destroyed Mni. Grenade Launcher. U-05 Engineer destroyed. Penetrated by Slug. Mni. Grenade Launcher destroyed. Critical hit (Blast). Penetrated by Slug. K-01 Serf collects debris. Penetrated by Slug. K-01 Serf cleans the Terminal. U-05 Engineer builds a Wall. Penetrated by Slug. K-01 Serf collects debris. Penetrated by Slug. Map ----- +----------------------------------------------------+ | ????# #?????????# # #???### ###??? | | ????# #?????????# # #?????# #????? | | ????# #?????????# + #?????# #????? | | ????# ########### # #?????#+#????? | | ????# # ## ##########?????? ????? | | ????# # """ ## ##????????###??? "????? | | ????# + """"" # !!= ####### #???"????? | | ????# # """"" # !%* #???""???? | | ????# # """"" + [% +??? ????? | | ????# # """ # #????????? | | ????# # """"" #????????? | | ????# # # ########"# ##?????????? | | ????# # ! ## % # # " #??????????? | | #####+######### # # # #????????????? | | # ## # + # " #??????????? | | # ">" #### # # " #??????????? | | # "G" |#? # # % #"# ??????????? | | # " ! #### [ + ???????????? | | # ## ## #####???????????? | | #### +####+##### % !#?????????????? | | # ! k ##########????? | | ## T x /# = [#????? | | # # #### x ! # ! #????? | | ! # ######### ### #????? | | # # u # # #????? | | ### ## @ # + ! #????? | | # ### H ### # #????? | | ### ##?# % # #?# # #????? | | ?## #??########### #?# # #????? | | ?# #"### ##### ## + #????? | | ?# ?# ##########????? | | ?# ## ##?????????????? | | ?# ###" ####? ## #??????????????? | | ?### ###??#+###??###+####+####???????????? | | ???# #???????????# #???????????? | | ???####???????????# """"""" #???????????? | | ??????????????????# """"""" [ #???????????? | | ??????????????????# """"""" #???????????? | | ??????????????????# """"""" #???????????? | | ??????????????????# """"""" !#???????????? | | ??????????????????????? #???????????? | | ???????????????????????????####???????????? | | | | | | | | | | | | | | | | | +----------------------------------------------------+ Best States ------------- Heat Dissipation 45 Energy Generation 23 Energy Capacity 500 Matter Stores 300 Matter Capacity 300 Sight Range 16 Terrain Scan Density 10 Armor Coverage 150 Evasion (%) 55 Launcher Accuracy 20 Recoil Reduction 2 Defensive Hacking 10 Item Schematics ----------------- Adv. Beam Cannon | -8/Materials | Scanalyzed Robot Schematics ------------------ None Fabricated ------------ Nothing Alien Tech Used ----------------- None Achievements -------------- Remodeling Challenges ------------ None Game ------ Seed SpikedNetworkStorage Manual? 0 Play Time 00:38:24 Cumulative 7.2 hours Start 2023.11.05 @ 18:11:10 End 2023.11.09 @ 21:12:24 Sessions 3 Manual Loads 0 Difficulty Rogue Special Mode None Game No. 19 Rogue 19 Adventurer 0 Explorer 0 Win Type - Total 0 Types 0/0/0/0/0/0/0/0/0 Lore% 6 Gallery% 13 Achievement% 11 Wizard Run 0 Options --------- ASCII 0 Keyboard 0 Movement Arrows Keybinds 0 Fullscreen 1 Font 18/SmallcapsGlow Map View 76x50 Tactical HUD 0 Map Filters NONE Filters NONE Steam 1 RUN: 5aa02f14-2adb-4f6c-977a-1fb953192aea